bitfinex-derivatives/quotes_BTCF0:USTF0_20241013
["timestamp","ask_amount","ask_price","bid_price","bid_amount"]
[1728841341463,0.081872,62609.0,62608.0,0.22102234]
[1728841342364,0.081872,62609.0,62608.0,0.10920242]
[1728841343165,0.081872,62609.0,62608.0,0.22099496]
[1728841343352,0.081872,62609.0,62608.0,0.079873]
[1728841343549,0.079877,62606.0,62604.0,0.079877]
[1728841343750,0.17,62605.0,62604.0,0.079877]
[1728841343955,0.17,62605.0,62604.0,0.08487271]
[1728841346360,0.171,62605.0,62604.0,0.08487271]
[1728841346667,0.001,62605.0,62604.0,0.079877]
[1728841347355,0.002,62605.0,62604.0,0.079877]
[1728841351358,0.002,62605.0,62597.0,0.079887]
[1728841351359,0.079888,62597.0,62596.0,0.3608]
[1728841351661,0.20991713,62597.0,62596.0,0.47301471]
[1728841352066,0.20991713,62597.0,62596.0,0.3608]
[1728841352458,0.2121092,62597.0,62596.0,0.440689]
[1728841353263,0.2131092,62597.0,62596.0,0.47284839]
[1728841353575,0.00319207,62597.0,62595.0,0.07989]
[1728841353760,0.17,62594.0,62593.0,0.079893]
[1728841353965,0.17,62594.0,62593.0,0.19201706]
[1728841354555,0.17219207,62594.0,62593.0,0.19201706]
[1728841355054,0.17219207,62594.0,62593.0,0.079893]
[1728841355469,0.17219207,62594.0,62593.0,0.19208312]
[1728841355470,0.25308307,62594.0,62593.0,0.19208312]
[1728841356261,0.25408307,62594.0,62593.0,0.19208312]
[1728841356476,0.25408307,62594.0,62593.0,0.27174501]
[1728841356858,0.17419207,62594.0,62593.0,0.11219201]
[1728841357075,0.079894,62592.0,62591.0,0.07966189]
[1728841357362,0.079894,62592.0,62590.0,0.07966189]
[1728841357560,0.17219207,62591.0,62590.0,0.15955789]
[1728841357755,0.17219207,62591.0,62590.0,0.27187566]
[1728841358267,0.17219207,62591.0,62590.0,0.079896]
[1728841358657,0.17219207,62591.0,62588.0,0.0765634]
[1728841358860,0.17219207,62591.0,62583.0,0.00239663]
[1728841358861,0.3608,62589.0,62583.0,0.00239663]
[1728841359063,0.079904,62584.0,62583.0,0.00239663]
[1728841359368,0.079904,62584.0,62583.0,0.08230163]
[1728841359763,0.08209607,62584.0,62583.0,0.08230163]
[1728841360162,0.08309607,62584.0,62583.0,0.00239663]
[1728841360365,0.25309607,62584.0,62583.0,0.00239663]
[1728841361076,0.25409607,62584.0,62583.0,0.00239663]
[1728841361570,0.61489607,62584.0,62583.0,0.00239663]
[1728841362956,0.61489607,62584.0,62583.0,0.08230163]
[1728841363164,0.00419207,62584.0,62583.0,0.25230163]
[1728841363956,0.25409607,62584.0,62583.0,0.00239663]
[1728841364169,0.079914,62576.0,62575.0,0.0037]
[1728841364466,0.079914,62576.0,62574.0,0.3608]
[1728841364467,0.079916,62575.0,62574.0,0.3608]
[1728841364766,0.08210807,62575.0,62574.0,0.38909744]
[1728841364960,0.00219207,62575.0,62574.0,0.38909744]
[1728841365155,0.00219207,62575.0,62574.0,0.46901444]
[1728841366062,0.00319207,62575.0,62574.0,0.440717]
[1728841366263,0.00319207,62575.0,62574.0,0.079917]
[1728841366562,0.17,62577.0,62573.0,0.07966189]
[1728841366764,0.17,62574.0,62573.0,0.15957989]
[1728841366962,0.17,62574.0,62573.0,0.27202957]
[1728841367377,0.17,62574.0,62573.0,0.2720178]
[1728841368160,0.171,62574.0,62573.0,0.2720178]
[1728841368468,0.17,62577.0,62576.0,0.079914]
[1728841369566,0.17,62577.0,62576.0,0.080914]
[1728841369567,0.171,62577.0,62576.0,0.080914]
[1728841369766,0.172,62577.0,62576.0,0.080914]
[1728841372382,0.251913,62577.0,62576.0,0.080914]
[1728841374175,0.612713,62577.0,62576.0,0.001]
[1728841374580,0.612713,62577.0,62575.0,0.04770525]
[1728841374581,0.079914,62576.0,62575.0,0.04770525]
[1728841374770,0.079916,62575.0,62574.0,0.04770525]
[1728841374968,0.249916,62575.0,62574.0,0.04770525]
[1728841375473,0.079918,62573.0,62572.0,0.06361007]
[1728841375676,0.17,62575.0,62570.0,0.440721]
[1728841375677,0.079919,62572.0,62571.0,0.06361007]
[1728841375980,0.249919,62572.0,62571.0,0.14353107]
[1728841376684,0.079926,62567.0,62564.0,0.3661]
[1728841376884,0.079921,62571.0,62564.0,0.3608]
[1728841376885,0.34,62565.0,62564.0,0.3608]
[1728841377074,0.419928,62565.0,62564.0,0.3608]
[1728841377582,0.249928,62565.0,62564.0,0.3608]
[1728841378083,0.250928,62565.0,62564.0,0.3618]
[1728841378282,0.420928,62565.0,62564.0,0.40952353]
[1728841378479,0.250928,62565.0,62564.0,0.3618]
[1728841379584,0.251928,62565.0,62564.0,0.3618]
[1728841379779,0.28085351,62565.0,62564.0,0.3618]
[1728841380487,0.28085351,62565.0,62564.0,0.40952353]
[1728841380787,0.251928,62565.0,62564.0,0.44173]
[1728841381980,0.251928,62565.0,62564.0,0.3618]
[1728841382580,0.654628,62565.0,62564.0,0.04874356]
[1728841384187,0.654628,62565.0,62564.0,0.001]
[1728841384382,0.654628,62565.0,62564.0,0.04874356]
[1728841385684,0.654628,62565.0,62564.0,0.001]
[1728841387080,0.654628,62565.0,62564.0,0.04874864]
[1728841387390,0.654628,62565.0,62564.0,0.001]
[1728841388689,0.654628,62565.0,62557.0,0.0037]
[1728841388690,0.079937,62558.0,62557.0,0.0037]
[1728841388891,0.079942,62554.0,62553.0,0.079944]
[1728841389189,0.249942,62554.0,62553.0,0.19164766]
[1728841390281,0.17,62554.0,62551.0,0.00156]
[1728841390483,0.079945,62552.0,62551.0,0.079945]
[1728841391101,0.079944,62553.0,62547.0,0.1756894]
[1728841391282,0.079948,62550.0,62549.0,0.079948]
[1728841391588,0.079948,62550.0,62549.0,0.19152072]
[1728841391589,0.249948,62550.0,62549.0,0.19152072]
[1728841391787,0.17,62550.0,62549.0,0.19152072]
[1728841391983,0.001,62552.0,62551.0,0.079946]
[1728841392288,0.001,62552.0,62546.0,0.65687308]
[1728841392289,0.07995,62548.0,62547.0,0.079949]
[1728841392488,0.001,62552.0,62549.0,0.079949]
[1728841392489,0.171,62550.0,62549.0,0.079949]
[1728841392677,0.250948,62550.0,62549.0,0.19155515]
[1728841392882,0.250948,62550.0,62549.0,0.19156437]
[1728841393291,0.249948,62550.0,62549.0,0.19156437]
[1728841393891,0.250948,62550.0,62549.0,0.18766437]
[1728841394078,0.250948,62550.0,62546.0,0.3608]
[1728841394279,0.07995,62548.0,62547.0,0.11158753]
[1728841394788,0.079951,62547.0,62546.0,0.3608]
[1728841395390,0.079951,62547.0,62539.0,0.0957394]
[1728841395391,0.3608,62547.0,62539.0,0.0957394]
[1728841395579,0.17,62543.0,62542.0,0.079957]
[1728841395788,0.249956,62543.0,62542.0,0.19173925]
[1728841396089,0.249956,62543.0,62540.0,0.07996]
[1728841396090,0.17,62543.0,62540.0,0.07996]
[1728841396484,0.079964,62537.0,62536.0,0.08236372]
[1728841397387,0.079964,62537.0,62536.0,0.079965]
[1728841397790,0.079966,62536.0,62528.0,0.0037]
[1728841398090,0.001,62537.0,62529.0,0.00500182]
[1728841398284,0.079972,62533.0,62532.0,0.07997]
[1728841398984,0.249972,62533.0,62532.0,0.07997]
[1728841399179,0.249972,62533.0,62524.0,0.0708014]
[1728841399180,0.079975,62529.0,62526.0,0.079978]
[1728841399486,0.36272,62533.0,62522.0,0.00239927]
[1728841399686,0.17,62530.0,62526.0,0.079978]
[1728841399888,0.17,62530.0,62522.0,0.00239927]
[1728841399889,0.17,62530.0,62523.0,0.079982]
[1728841400085,0.17,62530.0,62522.0,0.00239927]
[1728841400086,0.079976,62528.0,62522.0,0.03073981]
[1728841400292,0.17,62530.0,62529.0,0.079974]
[1728841400685,0.5318,62533.0,62523.0,0.17]
[1728841400997,0.1737,62533.0,62532.0,0.440771]
[1728841401291,0.34,62533.0,62524.0,0.0037]
[1728841401591,0.34,62533.0,62513.0,0.008]
[1728841401592,0.079985,62521.0,62520.0,0.0037]
[1728841401790,0.17,62524.0,62515.0,0.3608]
[1728841401986,0.17,62524.0,62518.0,0.079988]
[1728841402191,0.17,62524.0,62519.0,0.079986]
[1728841402695,0.17,62521.0,62519.0,0.079986]
[1728841403392,0.17,62521.0,62514.0,0.079993]
[1728841403583,0.17,62517.0,62514.0,0.079993]
[1728841403783,0.079985,62521.0,62514.0,0.079993]
[1728841403979,0.17,62518.0,62514.0,0.079993]
[1728841404395,0.1139661,62518.0,62509.0,0.4565394]
[1728841404692,0.001,62521.0,62510.0,0.11218792]
[1728841404693,0.3608,62519.0,62510.0,0.11218792]
[1728841404890,0.3608,62519.0,62509.0,0.3608]
[1728841404891,0.17,62511.0,62509.0,0.3608]
[1728841405194,0.249998,62511.0,62509.0,0.3608]
[1728841405696,0.17,62515.0,62509.0,0.3608]
[1728841405894,0.17,62515.0,62512.0,0.04765068]
[1728841406195,0.0018,62519.0,62517.0,0.079989]
[1728841406393,0.0018,62519.0,62518.0,0.0374]
[1728841406698,0.001,62519.0,62518.0,0.0374]
[1728841406997,0.001,62519.0,62518.0,0.2074]
[1728841407195,0.001,62519.0,62518.0,0.0374]
[1728841407388,0.002,62519.0,62518.0,0.0374]
[1728841407585,0.002,62519.0,62518.0,0.2074]
[1728841407891,0.001,62519.0,62518.0,0.2074]
[1728841408091,0.0037,62525.0,62521.0,0.079984]
[1728841408292,0.17,62526.0,62521.0,0.079984]
[1728841408489,0.17,62526.0,62515.0,0.0761]
[1728841408490,0.5308,62522.0,62517.0,0.04762621]
[1728841408691,0.079994,62514.0,62513.0,0.0037]
[1728841408891,0.08,62509.0,62506.0,0.04762621]
[1728841409196,0.5308,62514.0,62506.0,0.04762621]
[1728841409197,0.250003,62507.0,62506.0,0.04762621]
[1728841409389,0.250003,62507.0,62506.0,0.04761461]
[1728841409584,0.250003,62507.0,62500.0,0.0374]
[1728841409585,0.250003,62507.0,62505.0,0.04761461]
[1728841409788,0.250003,62507.0,62506.0,0.04761461]
[1728841410192,0.250003,62507.0,62505.0,0.04761461]
[1728841410597,0.17,62506.0,62505.0,0.04761461]
[1728841411185,0.17,62506.0,62505.0,0.080005]
[1728841411493,0.002,62507.0,62505.0,0.080005]
[1728841411696,0.172,62507.0,62505.0,0.080005]
[1728841412093,0.001,62506.0,62505.0,0.080005]
[1728841412295,0.001,62506.0,62500.0,0.0762]
[1728841412296,0.080006,62504.0,62503.0,0.04761461]
[1728841412599,0.250006,62504.0,62501.0,0.04761461]
[1728841413295,0.17,62504.0,62500.0,0.0762]
[1728841413499,0.08001,62501.0,62500.0,0.0762]
[1728841414197,0.08001,62501.0,62500.0,0.0374]
[1728841414704,0.172,62504.0,62500.0,0.0335]
[1728841415490,0.08101,62501.0,62500.0,0.0335]
[1728841416297,0.08001,62501.0,62500.0,0.0335]
[1728841416603,0.08101,62501.0,62500.0,0.0335]
[1728841418004,0.08201,62501.0,62500.0,0.0335]
[1728841419296,0.002,62501.0,62500.0,0.283512]
[1728841419496,0.0037,62510.0,62509.0,0.08]
[1728841419699,0.451894,62514.0,62506.0,0.5308]
[1728841419700,0.080794,62514.0,62506.0,0.5308]
[1728841419898,0.079994,62514.0,62507.0,0.072]
[1728841420097,0.079994,62514.0,62512.0,0.3608]
[1728841420404,0.17,62516.0,62512.0,0.3608]
[1728841420701,0.17,62516.0,62512.0,0.440796]
[1728841421121,0.001,62514.0,62513.0,0.079994]
[1728841422292,0.002,62514.0,62513.0,0.080994]
[1728841422695,0.001,62514.0,62513.0,0.080994]
[1728841423407,0.002,62514.0,62513.0,0.082994]
[1728841425703,0.002,62514.0,62513.0,0.443794]
[1728841425895,0.002,62514.0,62513.0,0.52317769]
[1728841426201,0.002,62514.0,62513.0,0.5551207]
[1728841426907,0.002,62514.0,62513.0,0.443794]
[1728841427797,0.0037,62520.0,62513.0,0.443794]
[1728841427798,0.0037,62520.0,62519.0,0.079987]
[1728841428000,0.17,62526.0,62524.0,0.07998]
[1728841428815,0.249978,62526.0,62524.0,0.07998]
[1728841429106,0.249978,62526.0,62525.0,0.07998]
[1728841429107,0.17,62526.0,62525.0,0.07998]
[1728841430001,0.17,62526.0,62525.0,0.44078]
[1728841430210,0.171,62526.0,62525.0,0.44078]
[1728841430803,0.172,62526.0,62525.0,0.44078]
[1728841431612,0.172,62526.0,62525.0,0.44378]
[1728841432201,0.172,62526.0,62525.0,0.44578]
[1728841433606,0.421978,62526.0,62525.0,0.005]
[1728841433825,0.49235516,62526.0,62525.0,0.005]
[1728841434107,0.61974476,62526.0,62525.0,0.005]
[1728841434308,0.49235516,62526.0,62525.0,0.005]
[1728841435011,0.5195936,62526.0,62525.0,0.002]
[1728841435208,0.62607523,62526.0,62525.0,0.00148392]
[1728841435509,0.62507523,62526.0,62525.0,0.001]
[1728841437409,0.62477758,62526.0,62525.0,0.001]
[1728841438412,0.45477758,62526.0,62525.0,0.001]
[1728841439312,0.62477758,62526.0,62512.0,0.00239949]
[1728841439511,0.079995,62513.0,62512.0,0.00239949]
[1728841439711,0.29293227,62513.0,62512.0,0.00239949]
[1728841439919,0.19917871,62513.0,62512.0,0.00239949]
[1728841440210,0.37378351,62513.0,62512.0,0.00239949]
[1728841440611,0.37378351,62513.0,62512.0,0.00439949]
[1728841440912,0.33332665,62513.0,62512.0,0.08439549]
[1728841441104,0.11918371,62513.0,62512.0,0.08439549]
[1728841441420,0.12018371,62513.0,62512.0,0.08439549]
[1728841441710,0.001,62513.0,62512.0,0.19613487]
[1728841441913,0.15872185,62514.0,62513.0,0.079995]
[1728841442114,0.1746048,62518.0,62517.0,0.24999]
[1728841442415,0.1746048,62518.0,62517.0,0.84160938]
[1728841442606,0.1746048,62518.0,62517.0,1.44160938]
[1728841443001,0.3608,62528.0,62517.0,1.49593381]
[1728841443206,0.079972,62532.0,62529.0,0.079973]
[1728841443407,0.069,62533.0,62530.0,0.06377555]
[1728841443408,0.079972,62531.0,62530.0,0.06377555]
[1728841443610,0.079972,62531.0,62530.0,0.05987555]
[1728841443819,0.079972,62531.0,62529.0,0.079973]
[1728841444408,0.079972,62531.0,62529.0,0.076073]
[1728841444821,0.079972,62531.0,62529.0,0.072173]
[1728841445318,0.079972,62531.0,62527.0,0.07972349]
[1728841445508,0.079972,62531.0,62530.0,0.079973]
[1728841445713,0.001,62531.0,62530.0,0.246073]
[1728841445913,0.001,62531.0,62530.0,0.72055436]
[1728841446119,0.002,62531.0,62530.0,0.71665436]
[1728841446620,0.001,62531.0,62530.0,0.71665436]
[1728841446817,0.001,62531.0,62530.0,0.54665436]
[1728841447011,0.081972,62531.0,62530.0,0.26858499]
[1728841447212,0.081972,62531.0,62530.0,0.18885436]
[1728841447615,0.081972,62531.0,62530.0,0.13545436]
[1728841447809,0.342,62531.0,62522.0,0.01421617]
[1728841448112,0.079995,62513.0,62512.0,0.00239949]
[1728841448313,0.440795,62513.0,62512.0,0.00239949]
[1728841448716,0.5473005,62513.0,62512.0,0.00152068]
[1728841449520,0.410915,62513.0,62512.0,0.001]
[1728841449722,0.079997,62512.0,62497.0,0.3608]
[1728841449922,0.17,62498.0,62497.0,0.3598]
[1728841450128,0.17,62498.0,62487.0,0.00156]
[1728841450129,0.56998459,62498.0,62487.0,0.00156]
[1728841450425,0.080031,62485.0,62481.0,0.17]
[1728841450621,0.03918459,62487.0,62484.0,0.17240072]
[1728841450831,0.12693147,62485.0,62484.0,0.25243272]
[1728841451012,0.03918459,62485.0,62484.0,0.25243272]
[1728841451320,0.11106663,62488.0,62482.0,0.0358]
[1728841451521,0.11106663,62487.0,62486.0,0.080029]
[1728841451823,0.14198365,62487.0,62486.0,0.080029]
[1728841452421,0.03091702,62487.0,62486.0,0.080029]
[1728841452612,0.03091702,62487.0,62484.0,0.080032]
[1728841452613,0.001,62485.0,62484.0,0.080032]
[1728841452822,0.03191702,62485.0,62484.0,0.080032]
[1728841453625,0.0309169,62485.0,62484.0,0.080032]
[1728841453823,0.0309169,62485.0,62482.0,0.080034]
[1728841454022,0.0309169,62484.0,62482.0,0.080034]
[1728841454816,0.1109489,62484.0,62481.0,0.080036]
[1728841455122,0.001,62485.0,62482.0,0.080035]
[1728841455123,0.0309169,62483.0,62482.0,0.080035]
[1728841456524,0.001,62483.0,62480.0,0.3608]
[1728841456714,0.001,62483.0,62482.0,0.080035]
[1728841457420,0.002,62483.0,62482.0,0.080035]
[1728841458419,0.001,62483.0,62482.0,0.080035]
[1728841458619,0.002,62483.0,62482.0,0.080035]
[1728841460222,0.002,62483.0,62482.0,1.160155]
[1728841460624,0.0037,62491.0,62482.0,1.160155]
[1728841460830,0.0037,62495.0,62494.0,0.080019]
[1728841461016,0.080021,62493.0,62489.0,0.3608]
[1728841461333,0.080024,62490.0,62486.0,0.080029]
[1728841461528,0.17,62491.0,62483.0,0.0037]
[1728841461529,0.080032,62484.0,62483.0,0.0037]
[1728841461825,0.250032,62484.0,62483.0,0.0037]
[1728841462622,0.252032,62484.0,62483.0,0.0037]
[1728841462824,0.732152,62484.0,62483.0,0.0037]
[1728841463130,0.252032,62484.0,62483.0,0.0037]
[1728841471236,0.082032,62484.0,62483.0,0.0037]
[1728841471431,0.252032,62484.0,62483.0,0.0037]
[1728841474538,0.252032,62484.0,62483.0,0.083733]
[1728841474836,0.172,62484.0,62483.0,0.083733]
[1728841475740,0.252032,62484.0,62483.0,0.083733]
[1728841477125,0.252032,62484.0,62483.0,0.073733]
[1728841478338,0.172,62484.0,62483.0,0.073733]
[1728841479535,0.252032,62484.0,62483.0,0.1872338]
[1728841480528,0.172,62484.0,62483.0,0.1872338]
[1728841480728,0.002,62484.0,62483.0,0.49249293]
[1728841481042,0.17,62490.0,62489.0,0.080026]
[1728841481344,0.17,62490.0,62489.0,0.1935268]
[1728841481640,0.610824,62490.0,62489.0,0.1135008]
[1728841482932,0.780824,62490.0,62489.0,0.1135008]
[1728841483134,0.610824,62490.0,62489.0,0.1135008]
[1728841483332,0.780824,62490.0,62489.0,0.1135008]
[1728841483534,0.610824,62490.0,62489.0,0.1135008]
[1728841483839,0.780824,62490.0,62489.0,0.1135008]
[1728841484045,0.780824,62490.0,62489.0,0.19344034]
[1728841484237,0.780824,62490.0,62489.0,0.07993954]
[1728841484438,0.780824,62490.0,62488.0,0.02523954]
[1728841484439,0.080026,62489.0,62488.0,0.02523954]
[1728841484637,0.646826,62489.0,62480.0,0.09591444]
[1728841484838,0.610836,62481.0,62479.0,0.09591444]
[1728841485038,0.610836,62481.0,62480.0,0.11313796]
[1728841485039,0.440836,62481.0,62480.0,0.11313796]
[1728841485242,0.440836,62481.0,62480.0,0.19317496]
[1728841485437,0.440836,62481.0,62480.0,0.32781512]
[1728841485639,0.080036,62481.0,62480.0,0.11308348]
[1728841486838,0.22299449,62481.0,62480.0,0.080037]
[1728841487043,0.19929204,62481.0,62480.0,0.081037]
[1728841487543,0.34334591,62481.0,62480.0,0.081037]
[1728841487845,0.34434591,62481.0,62480.0,0.002]
[1728841488053,0.15215738,62481.0,62480.0,0.002]
[1728841488550,0.11295729,62481.0,62480.0,0.082037]
[1728841488934,0.07212114,62481.0,62480.0,0.082037]
[1728841489552,0.15215714,62481.0,62480.0,0.082037]
[1728841489750,0.07212114,62481.0,62480.0,0.082037]
[1728841489949,0.01742114,62481.0,62480.0,0.082037]
[1728841490248,0.12719206,62483.0,62482.0,0.080035]
[1728841490547,0.20721906,62488.0,62480.0,0.0036]
[1728841490843,0.53168,62490.0,62480.0,0.0036]
[1728841490844,0.11132037,62482.0,62481.0,0.080036]
[1728841491344,0.20722006,62487.0,62481.0,0.48016]
[1728841491551,0.11134307,62482.0,62481.0,0.080036]
[1728841492141,0.11234307,62483.0,62482.0,0.080035]
[1728841492445,0.11134307,62483.0,62482.0,0.080035]
[1728841493052,0.20721906,62488.0,62482.0,0.080035]
[1728841493250,0.20721906,62488.0,62483.0,0.0331]
[1728841493438,0.20721906,62488.0,62487.0,0.080028]
[1728841493650,0.12719206,62489.0,62487.0,0.080028]
[1728841493840,0.12719206,62489.0,62483.0,0.0331]
[1728841493841,0.080025,62490.0,62484.0,0.080032]
[1728841494046,0.17,62494.0,62483.0,0.0331]
[1728841494047,0.080026,62489.0,62487.0,0.080027]
[1728841494652,0.25002,62494.0,62484.0,0.3608]
[1728841494843,0.08002,62494.0,62493.0,0.08002]
[1728841495043,0.25002,62494.0,62493.0,0.08002]
[1728841497251,0.25202,62494.0,62493.0,0.08002]
[1728841502050,0.25202,62494.0,62493.0,0.25002]
[1728841502051,0.002,62494.0,62493.0,0.25002]
[1728841502248,0.002,62494.0,62493.0,0.31862]
[1728841503357,0.002,62494.0,62493.0,0.14862]
[1728841503670,0.002,62494.0,62493.0,0.31862]
[1728841504758,0.002,62494.0,62493.0,0.11342]
[1728841505960,0.002,62494.0,62493.0,0.28342]
[1728841507455,0.08240891,62503.0,62502.0,0.080009]
[1728841508564,0.00240091,62503.0,62502.0,0.250009]
[1728841508760,0.01240091,62503.0,62502.0,0.610809]
[1728841508963,0.04330891,62503.0,62502.0,0.3608]
[1728841509261,0.13160569,62503.0,62502.0,1.690809]
[1728841509451,0.07780569,62503.0,62502.0,1.690809]
[1728841509650,0.0037,62507.0,62502.0,1.690809]
[1728841509651,0.1745317,62505.0,62504.0,0.080006]
[1728841509851,0.1745317,62507.0,62506.0,0.080004]
[1728841510052,0.2077724,62507.0,62506.0,0.77500351]
[1728841510258,0.2077724,62507.0,62506.0,1.33496751]
[1728841510662,0.04910868,62507.0,62506.0,1.33496751]
[1728841511058,0.04910868,62507.0,62506.0,1.329964]
[1728841511667,0.14265036,62507.0,62506.0,1.329964]
[1728841511967,0.04910868,62507.0,62506.0,1.33496747]
[1728841512173,0.14265073,62509.0,62506.0,1.24996]
[1728841512370,0.1267995,62510.0,62506.0,0.34]
[1728841512563,0.14265073,62516.0,62509.0,0.17]
[1728841512765,0.04910442,62515.0,62514.0,0.079994]
[1728841513071,0.04910442,62515.0,62514.0,0.249994]
[1728841513072,0.14259233,62515.0,62514.0,0.249994]
[1728841513272,0.12674112,62516.0,62514.0,1.24988]
[1728841513463,0.14259233,62516.0,62515.0,0.079992]
[1728841513676,0.08237435,62529.0,62515.0,0.079992]
[1728841513677,0.14259233,62518.0,62515.0,0.47988]
[1728841513972,0.08237435,62529.0,62515.0,0.079992]
[1728841513973,0.001,62516.0,62515.0,0.079992]
[1728841514368,0.11083431,62518.0,62517.0,0.07999]
[1728841514572,0.00836001,62530.0,62524.0,0.079981]
[1728841514871,0.50339233,62550.0,62548.0,0.079949]
[1728841514872,0.080868,62550.0,62548.0,0.079949]
[1728841515072,0.080868,62550.0,62535.0,0.079966]
[1728841515073,0.1745317,62550.0,62549.0,0.249948]
[1728841515372,0.1745317,62553.0,62549.0,0.17]
[1728841515563,0.1745317,62553.0,62552.0,0.079945]
[1728841515871,0.079945,62552.0,62547.0,0.44075]
[1728841516066,0.079945,62552.0,62549.0,0.249949]
[1728841516266,0.0358,62554.0,62551.0,0.079946]
[1728841516463,0.14210043,62553.0,62551.0,0.079946]
[1728841516663,0.14210043,62553.0,62549.0,0.17]
[1728841516664,0.008,62553.0,62549.0,0.17]
[1728841516961,0.008,62553.0,62541.0,0.3608]
[1728841516962,0.5308,62550.0,62541.0,0.3608]
[1728841517164,0.079963,62539.0,62535.0,0.08236407]
[1728841517370,0.17,62536.0,62535.0,0.08236407]
[1728841517570,0.079965,62537.0,62535.0,0.08236407]
[1728841517761,0.146163,62538.0,62535.0,0.08236407]
[1728841517963,0.146163,62538.0,62535.0,0.00239807]
[1728841517964,0.0662,62538.0,62535.0,0.00239807]
[1728841518165,0.0662,62538.0,62537.0,0.079964]
[1728841519166,0.0662,62538.0,62535.0,0.01139807]
[1728841519377,0.0662,62538.0,62537.0,0.005]
[1728841520868,0.0662,62538.0,62537.0,0.002]
[1728841521067,0.0672,62538.0,62537.0,0.002]
[1728841521269,0.0672,62538.0,62535.0,0.08936407]
[1728841521468,0.0672,62538.0,62537.0,0.002]
[1728841521665,0.146163,62538.0,62537.0,0.002]
[1728841521873,0.147163,62538.0,62537.0,0.007]
[1728841522083,0.0672,62538.0,62537.0,0.088964]
[1728841522578,0.0662,62538.0,62537.0,0.086964]
[1728841523777,0.0662,62538.0,62537.0,0.087964]
[1728841524168,0.18534322,62538.0,62533.0,0.2356119]
[1728841524363,0.17650236,62537.0,62534.0,0.079968]
[1728841524569,0.17650236,62536.0,62535.0,0.079967]
[1728841524771,0.11914322,62536.0,62535.0,0.079967]
[1728841526078,0.12014322,62536.0,62535.0,0.256967]
[1728841527179,0.12014322,62536.0,62535.0,0.261967]
[1728841527680,0.12014322,62536.0,62535.0,0.088967]
[1728841528771,0.65447117,62536.0,62532.0,0.0022]
[1728841528979,0.079975,62529.0,62526.0,0.079977]
[1728841529179,0.11916073,62528.0,62526.0,0.079977]
[1728841529373,0.11916073,62527.0,62526.0,0.079977]
[1728841529576,0.11916073,62527.0,62522.0,0.079983]
[1728841529882,0.079985,62521.0,62520.0,0.002399]
[1728841530177,0.55994573,62521.0,62519.0,0.079987]
[1728841530374,0.17651987,62520.0,62519.0,0.079987]
[1728841531774,0.17751987,62520.0,62519.0,0.089987]
[1728841531972,0.21121987,62520.0,62519.0,0.089987]
[1728841532175,0.0705,62520.0,62519.0,0.089987]
[1728841532567,0.150486,62520.0,62519.0,0.01]
[1728841533171,0.0705,62520.0,62519.0,0.089987]
[1728841534375,0.001,62520.0,62519.0,0.089987]
[1728841534580,0.0354,62526.0,62519.0,0.089987]
[1728841534581,0.0356,62527.0,62526.0,0.079978]
[1728841534774,0.0356,62527.0,62526.0,0.249978]
[1728841536185,0.0386,62527.0,62526.0,0.249978]
[1728841537276,0.0366,62527.0,62526.0,0.254978]
[1728841537883,0.0376,62527.0,62526.0,0.255978]
[1728841538081,0.0376,62527.0,62526.0,0.261978]
[1728841540490,0.0356,62527.0,62526.0,0.249978]
[1728841540792,0.0376,62527.0,62526.0,0.260978]
[1728841541299,0.0366,62527.0,62526.0,0.255978]
[1728841541491,0.0376,62527.0,62526.0,0.260978]
[1728841545199,0.0366,62527.0,62526.0,0.255978]
[1728841545493,0.287577,62527.0,62526.0,0.011]
[1728841545791,0.287577,62527.0,62518.0,0.079988]
[1728841545792,0.079987,62520.0,62518.0,0.079988]
[1728841546198,0.38672473,62521.0,62519.0,0.26170031]
[1728841546492,0.38672473,62521.0,62510.0,0.15879284]
[1728841546493,0.079992,62516.0,62514.0,0.11170232]
[1728841546794,0.079992,62516.0,62513.0,0.079995]
[1728841546795,0.249992,62516.0,62515.0,0.42771313]
[1728841546993,0.249992,62516.0,62515.0,0.26214705]
[1728841547502,0.250992,62516.0,62515.0,0.26214705]
[1728841547689,0.251992,62516.0,62515.0,0.26214705]
[1728841548398,0.250992,62516.0,62515.0,0.21534252]
[1728841548594,0.251992,62516.0,62515.0,0.01379472]
[1728841548898,0.250992,62516.0,62515.0,0.09356826]
[1728841549097,0.251992,62516.0,62515.0,0.08577354]
[1728841549399,0.251992,62516.0,62515.0,0.006]
[1728841549785,1.331872,62516.0,62515.0,0.006]
[1728841550294,1.331872,62516.0,62511.0,0.07977354]
[1728841550497,0.7008,62512.0,62506.0,0.00239957]
[1728841550701,0.610803,62507.0,62506.0,0.00239957]
[1728841550997,0.780803,62507.0,62506.0,0.00239957]
[1728841551201,0.25001,62501.0,62499.0,0.0037]
[1728841551392,0.25001,62501.0,62496.0,0.1757648]
[1728841551393,0.080015,62497.0,62496.0,0.1757648]
[1728841551708,0.080015,62497.0,62496.0,0.080017]
[1728841551709,0.250015,62497.0,62496.0,0.080017]
[1728841552296,0.17,62497.0,62496.0,0.080017]
[1728841553001,0.3964,62499.0,62498.0,0.080014]
[1728841553197,0.3956,62499.0,62498.0,0.080014]
[1728841554601,0.3966,62499.0,62498.0,0.080014]
[1728841555104,0.3966,62499.0,62494.0,0.080018]
[1728841555105,0.080015,62497.0,62494.0,0.080018]
[1728841555494,0.250015,62497.0,62494.0,0.080018]
[1728841556400,0.251015,62497.0,62496.0,0.080017]
[1728841556794,0.251015,62497.0,62473.0,0.0957478]
[1728841556795,0.080035,62482.0,62473.0,0.0957478]
[1728841556998,0.080035,62482.0,62460.0,0.55259096]
[1728841556999,0.8916,62482.0,62468.0,0.0355]